bitfinex/quotes_ETHUSD_20250222
["timestamp","ask_amount","ask_price","bid_price","bid_amount"]
[1740209329731,3.70961,2695.7,2695.5,0.05006013]
[1740209330147,7.41935,2695.7,2695.5,0.05006013]
[1740209330649,3.70974,2695.6,2695.5,0.05006013]
[1740209330851,4.530405,2695.7,2695.3,0.263]
[1740209331146,3.71002,2695.4,2695.3,0.263]
[1740209332255,3.70991,2695.5,2695.3,0.31434045]
[1740209332816,7.41991,2695.5,2695.3,0.31434045]
[1740209333418,3.71002,2695.4,2695.3,0.31434045]
[1740209334280,8.20521,2695.5,2695.3,0.31434045]
[1740209335076,4.49521,2695.5,2695.3,0.31434045]
[1740209335684,4.49521,2695.5,2695.3,0.6603104]
[1740209336884,4.49521,2695.5,2695.3,0.31434045]
[1740209337946,4.49521,2695.5,2695.3,0.59060536]
[1740209338889,4.49521,2695.5,2695.3,0.70672851]
[1740209339518,4.49521,2695.5,2695.3,0.4304636]
[1740209339806,4.49521,2695.5,2695.4,0.34592128]
[1740209340101,4.49521,2695.5,2695.4,0.39731623]
[1740209342212,3.70975,2695.6,2695.4,0.39731623]
[1740209342429,7.4196,2695.6,2695.4,0.39731623]
[1740209342772,7.4196,2695.6,2695.4,0.6741323]
[1740209343515,7.41961,2695.6,2695.4,0.6741323]
[1740209343689,3.70975,2695.6,2695.4,0.6741323]
[1740209343873,7.41959,2695.6,2695.4,0.6741323]
[1740209344078,7.41957,2695.6,2695.4,0.6741323]
[1740209344379,7.41957,2695.6,2695.4,0.05139495]
[1740209344714,3.70975,2695.6,2695.4,0.05139495]
[1740209345910,3.70988,2695.5,2695.4,0.05139495]
[1740209346113,3.70977,2695.6,2695.4,0.05139495]
[1740209346714,3.70977,2695.6,2695.5,0.34644885]
[1740209347120,3.70977,2695.6,2695.5,0.39931476]
[1740209348123,3.70977,2695.6,2695.5,0.51544]
[1740209348493,3.70977,2695.6,2695.5,0.79281949]
[1740209353420,3.70977,2695.6,2695.5,0.67669425]
[1740209357030,3.70977,2695.6,2695.5,0.79281919]
[1740209358750,19.969778,2695.6,2695.5,9.19e-06]
[1740209358899,19.969778,2695.6,2695.5,0.05097341]
[1740209359106,3.71105,2694.7,2694.5,0.263]
[1740209359436,3.71105,2694.7,2694.6,0.04725612]
[1740209359644,3.71105,2694.7,2694.6,0.263]
[1740209359801,15.83050304,2695.4,2694.6,0.30842059]
[1740209360021,3.7104,2695.2,2694.6,5.74004363]
[1740209360805,2.6833503,2695.3,2694.6,2.02892363]
[1740209361132,3.71046,2695.1,2694.6,2.02892363]
[1740209361285,3.71086,2694.8,2694.6,0.30842059]
[1740209361733,3.71062,2695.0,2694.6,0.30842059]
[1740209362088,3.71071,2694.9,2694.6,0.30842059]
[1740209363334,0.8003,2695.3,2694.6,0.30842059]
[1740209363633,3.71065,2695.0,2694.6,0.30842059]
[1740209364627,7.42134,2695.0,2694.6,0.30842059]
[1740209364938,3.71065,2695.0,2694.6,0.30842059]
[1740209365114,3.71071,2694.9,2694.6,0.30842059]
[1740209365310,3.71091,2694.8,2694.6,0.30842059]
[1740209365516,3.71098,2694.7,2694.6,0.30842059]
[1740209365832,7.42189,2694.8,2694.6,0.30842059]
[1740209366010,3.71091,2694.8,2694.6,0.30842059]
[1740209366358,3.71098,2694.7,2694.6,0.30842059]
[1740209367066,3.71091,2694.8,2694.6,0.30842059]
[1740209367242,3.71098,2694.7,2694.6,0.30842059]
[1740209372330,3.71072,2694.9,2694.6,0.30842059]
[1740209372669,3.71085,2694.8,2694.6,0.30842059]
[1740209373027,3.71072,2694.9,2694.6,0.30842059]
[1740209373274,4.53759,2695.0,2694.6,0.30842059]
[1740209373567,3.71081,2694.9,2694.6,0.30842059]
[1740209374262,6.147,2695.2,2694.6,2.02892363]
[1740209374473,3.71051,2695.1,2694.6,2.37507097]
[1740209375385,3.71059,2695.0,2694.7,0.34614734]
[1740209375566,3.71085,2694.8,2694.7,0.34614734]
[1740209375739,3.71072,2694.9,2694.8,0.04630644]
[1740209375939,3.71072,2694.9,2694.7,0.34614734]
[1740209376184,3.71072,2694.9,2694.8,0.04630644]
[1740209376539,3.71071,2694.9,2694.6,0.263]
[1740209376942,3.71071,2694.9,2694.7,0.04630644]
[1740209377267,3.71081,2694.9,2694.7,0.04630644]
[1740209377588,3.71085,2694.8,2694.7,0.04630644]
[1740209378359,3.7111,2694.7,2694.5,0.88604277]
[1740209379099,3.71112,2694.6,2694.5,0.88604277]
[1740209379467,3.71112,2694.6,2694.5,0.53989543]
[1740209379854,3.71112,2694.6,2694.5,0.263]
[1740209380049,3.71092,2694.8,2694.5,0.263]
[1740209380516,3.7106,2695.0,2694.5,0.263]
[1740209380883,3.71077,2694.9,2694.5,0.263]
[1740209381366,3.7106,2695.0,2694.5,0.263]
[1740209381567,3.71071,2694.9,2694.5,0.263]
[1740209382410,3.7106,2695.0,2694.6,0.27689543]
[1740209382613,3.71091,2694.8,2694.6,0.27689543]
[1740209383172,7.42186,2694.8,2694.6,0.27689543]
[1740209383573,4.48688,2694.7,2694.6,0.53989543]
[1740209383772,4.48688,2694.7,2694.6,0.263]
[1740209388016,4.48688,2694.7,2694.6,0.54032222]
[1740209388215,5.306655,2694.7,2694.6,0.54032222]
[1740209388790,5.306655,2694.7,2694.6,0.27732222]
[1740209390476,4.48688,2694.7,2694.6,0.27732222]
[1740209390918,4.48688,2694.7,2694.6,0.32357416]
[1740209392180,4.48688,2694.7,2694.6,0.27732222]
[1740209392386,4.48688,2694.7,2694.6,0.32357416]
[1740209392924,4.48688,2694.7,2694.6,0.27732222]
[1740209393126,5.306655,2694.7,2694.6,0.32357416]
[1740209394527,5.306655,2694.7,2694.6,0.27732222]
[1740209396289,3.7114,2694.4,2694.3,0.27732222]
[1740209396500,3.7114,2694.4,2694.3,0.32482813]
[1740209396703,4.453668,2694.4,2694.3,0.32482813]
[1740209397019,4.453668,2694.4,2694.3,0.27732222]
[1740209397228,5.231268,2694.4,2694.3,0.27732222]
[1740209397798,5.231268,2694.4,2694.3,0.04772405]
[1740209398003,3.71167,2694.2,2694.1,0.263]
[1740209398198,3.71206,2694.0,2693.4,1.72050304]
[1740209398396,3.71217,2693.9,2693.7,1.115598]
[1740209398622,3.71178,2694.2,2693.6,1.72050304]
[1740209398960,9.8092,2694.3,2693.8,0.263]
[1740209399097,13.52083,2694.3,2693.8,0.263]
[1740209399491,3.71183,2694.1,2693.8,0.263]
[1740209399688,3.71169,2694.2,2693.8,0.263]
[1740209400423,3.71169,2694.2,2693.9,0.27771458]
[1740209400626,5.32,2694.3,2693.9,0.27771458]
[1740209400828,9.03157,2694.3,2693.9,0.27771458]
[1740209401029,3.71175,2694.2,2693.9,0.27771458]
[1740209401526,9.03157,2694.3,2693.9,0.27771458]
[1740209401727,9.03157,2694.3,2694.0,0.27771458]
[1740209402627,9.03155,2694.3,2694.0,0.27771458]
[1740209403701,3.71174,2694.2,2694.0,0.27771458]
[1740209403906,9.03155,2694.3,2694.1,0.27771458]
[1740209404830,5.32,2694.3,2694.1,0.27771458]
[1740209405029,5.32,2694.7,2694.1,5.71001762]
[1740209405255,3.71119,2694.6,2694.1,1.72050304]
[1740209405818,3.71119,2694.6,2694.1,2.83593704]
[1740209406014,9.031,2694.7,2694.1,6.54771704]
[1740209406255,5.32,2694.7,2694.2,3.71157]
[1740209406453,5.32,2694.9,2694.3,1.72050304]
[1740209406760,3.71073,2694.9,2694.3,5.43200304]
[1740209407961,3.71073,2694.9,2694.4,0.27738355]
[1740209408263,3.71071,2694.9,2694.4,0.27738355]
[1740209409044,5.32,2695.0,2694.6,3.71099]
[1740209409246,5.32,2695.0,2694.7,0.264]
[1740209409739,9.03057,2695.0,2694.7,0.264]
[1740209410422,7.42071,2695.2,2694.7,0.264]
[1740209410624,1.122091,2695.1,2694.7,0.264]
[1740209411365,4.832611,2695.1,2694.7,0.264]
[1740209411769,4.832611,2695.1,2694.8,0.27738355]
[1740209411965,1.122091,2695.1,2694.8,0.27738355]
[1740209412171,7.51043,2695.3,2694.8,0.27738355]
[1740209412350,3.71029,2695.2,2694.8,0.27738355]
[1740209412959,3.71029,2695.2,2694.7,0.264]
[1740209413679,3.71051,2695.1,2694.7,0.264]
[1740209413838,4.83261,2695.1,2694.7,0.264]
[1740209414178,1.1221,2695.1,2694.7,0.264]
[1740209414567,1.1221,2695.1,2694.7,3.97497]
[1740209414782,3.71029,2695.2,2694.7,0.264]
[1740209414982,3.7105,2695.1,2694.7,0.264]
[1740209416935,3.71029,2695.2,2694.7,0.264]
[1740209417135,3.7106,2695.0,2694.7,0.264]
[1740209417677,3.7106,2695.0,2694.8,0.04766949]
[1740209418069,3.7106,2695.0,2694.0,9.42e-06]
[1740209418070,3.71085,2694.8,2694.0,9.42e-06]
[1740209418385,5.43152304,2694.7,2694.0,9.42e-06]
[1740209418539,3.7116,2694.3,2694.1,0.264]
[1740209419195,3.71167,2694.2,2694.1,0.264]
[1740209419344,3.71195,2694.0,2693.7,7.583]
[1740209419542,3.71195,2694.0,2693.8,0.264]
[1740209419788,3.71195,2694.0,2693.7,7.583]
[1740209419789,3.71222,2693.8,2693.7,7.583]
[1740209419982,3.71222,2693.8,2693.7,7.847]
[1740209420380,7.42402,2694.0,2693.8,0.27741074]
[1740209420689,7.9499977,2694.0,2693.8,0.27741074]
[1740209421092,3.71165,2694.3,2693.8,0.27741074]
[1740209421304,0.8055,2694.4,2693.8,0.27741074]
[1740209421491,4.51697,2694.4,2693.8,0.27741074]
[1740209421657,5.32,2694.5,2693.8,0.27741074]
[1740209421857,6.57838929,2694.5,2694.0,3.71187]
[1740209422084,6.57838929,2694.5,2694.0,7.4237]
[1740209422294,5.32,2694.5,2693.8,0.27741074]
[1740209422464,9.03129,2694.5,2693.9,3.71208]
[1740209422796,9.03129,2694.5,2693.9,0.27741074]
[1740209423002,3.71176,2694.2,2693.9,0.27741074]
[1740209423153,3.71184,2694.1,2693.9,0.27741074]
[1740209423354,3.71195,2694.0,2693.9,0.27741074]
[1740209423975,4.454321,2694.0,2693.8,0.27741074]
[1740209424180,3.71209,2693.9,2693.8,0.27741074]
[1740209424996,3.71209,2693.9,2693.8,0.54241074]
[1740209425198,3.71222,2693.8,2693.7,7.583]
[1740209425402,3.71222,2693.8,2693.7,7.848]
[1740209425896,3.71222,2693.8,2693.7,0.265]
[1740209426110,8.2409321,2693.9,2693.7,0.265]
[1740209426406,4.5287321,2693.9,2693.2,7.70987634]
[1740209426555,4.5287321,2693.9,2693.3,0.265]
[1740209426755,4.5287321,2693.9,2693.4,3.71276]
[1740209427103,5.32,2694.0,2693.5,3.97763]
[1740209427496,5.32,2694.0,2693.6,3.71243]
[1740209427824,5.32,2694.0,2693.6,0.27707192]
[1740209428423,9.03204,2694.0,2693.6,0.27707192]
[1740209429218,3.7121,2693.9,2693.5,0.38119249]
[1740209429405,9.03196,2694.0,2693.5,0.38119249]
[1740209429718,3.71209,2693.9,2693.5,0.38119249]
[1740209430421,3.71209,2693.9,2693.5,0.265]
[1740209431075,3.71209,2693.9,2693.6,0.04785828]
[1740209431977,3.71196,2694.0,2693.6,0.04785828]
[1740209432192,3.71195,2694.0,2693.6,0.04785828]
[1740209433717,3.71209,2693.9,2693.6,0.04785828]
[1740209434222,7.42428,2693.9,2693.6,0.04785828]
[1740209434423,3.71209,2693.9,2693.6,0.04785828]
[1740209434718,3.71236,2693.7,2693.6,0.04785828]
[1740209434914,3.71236,2693.7,2693.6,0.31185828]
[1740209435222,3.71236,2693.7,2693.6,0.04785828]
[1740209437378,3.7125,2693.6,2693.5,0.265]
[1740209437583,3.7125,2693.6,2693.5,0.04791282]
[1740209437809,4.454986,2693.6,2693.5,0.265]
[1740209438017,4.454986,2693.6,2693.5,0.31291282]
[1740209438214,5.262086,2693.6,2693.5,0.04791282]
[1740209438517,3.71277,2693.4,2693.3,0.265]
[1740209439381,3.71305,2693.2,2693.1,0.005]
[1740209439580,7.42606,2693.3,2693.1,0.27]
[1740209439780,3.71305,2693.2,2693.1,0.27]
[1740209440284,3.71305,2693.2,2693.1,0.005]
[1740209440487,3.71305,2693.2,2693.1,0.27]
[1740209440710,3.71305,2693.2,2693.1,0.005]
[1740209440911,4.52015,2693.2,2693.1,0.27]
[1740209441827,5.343466,2693.2,2693.1,0.005]
[1740209443140,1.630416,2693.2,2693.1,0.005]
[1740209443832,0.72703468,2693.2,2693.1,0.005]
[1740209446147,10.3113946,2693.5,2693.1,0.005]
[1740209446148,5.32,2693.5,2693.1,0.05461756]
[1740209446306,5.32,2693.5,2693.1,3.71819]
[1740209446502,5.32,2693.7,2693.1,3.71819]
[1740209446702,3.71258,2693.6,2693.1,0.005]
[1740209446942,3.71258,2693.6,2693.2,0.04961756]
[1740209447443,1.349741,2693.6,2693.2,0.3266633]
[1740209447648,4.46535,2693.4,2693.2,0.3266633]
[1740209447944,4.46541,2693.3,2693.2,0.39326319]
[1740209448617,0.7525,2693.3,2693.2,0.16564403]
[1740209449142,5.32,2693.4,2693.2,0.16564403]
[1740209449445,5.32,2693.4,2693.2,0.04942658]
[1740209449617,3.7125,2693.6,2693.2,0.04942658]
[1740209450319,3.7525,2693.8,2693.2,3.76239658]
[1740209450649,8.743198,2693.8,2693.2,0.04942658]
[1740209450813,3.71255,2693.6,2693.2,0.16564403]
[1740209451145,3.71248,2693.7,2693.2,0.16564403]
[1740209451743,5.030968,2693.8,2693.2,0.16564403]
[1740209451943,2.030968,2693.8,2693.3,0.2775123]
[1740209452145,2.030968,2693.8,2693.4,3.71276]
[1740209452453,0.7525,2693.8,2693.4,0.04964484]
[1740209453009,5.32,2693.9,2693.5,0.2775123]
[1740209453307,9.03209,2693.9,2693.6,0.04953573]
[1740209453637,0.978452,2693.8,2693.7,0.266]
[1740209454065,0.978452,2693.8,2693.7,0.31553573]
[1740209455420,0.978452,2693.8,2693.7,0.266]
[1740209455751,0.978452,2693.8,2693.7,0.31553573]
[1740209455904,5.32,2693.9,2693.7,0.31553573]
[1740209456107,5.32,2693.9,2693.7,0.266]
[1740209456553,5.32,2693.9,2693.8,0.04953573]
[1740209456748,6.0725,2694.0,2693.8,0.04953573]
[1740209457057,6.0725,2694.0,2693.7,0.266]
[1740209457253,4.31934,2693.9,2693.7,0.266]
[1740209457409,4.31934,2693.9,2693.8,0.04953573]
[1740209457610,0.60725,2693.9,2693.7,0.266]
[1740209457836,0.60725,2693.9,2693.8,0.04953573]
[1740209458038,0.60725,2693.9,2693.7,0.266]
[1740209458239,0.60725,2693.9,2693.8,0.04953573]
[1740209458461,0.60725,2693.9,2693.7,0.266]
[1740209458668,0.60725,2693.9,2693.8,0.04953573]
[1740209458865,0.60725,2693.9,2693.7,0.266]
[1740209459077,5.32,2694.0,2693.8,0.04953573]
[1740209459451,5.32,2694.0,2693.7,3.97835]
[1740209459623,9.03202,2694.0,2693.8,0.04953573]
[1740209459952,9.03202,2694.0,2693.7,0.266]
[1740209460469,10.306398,2694.0,2693.8,0.04953573]
[1740209460770,10.306398,2694.0,2693.7,0.266]
[1740209460952,4.986398,2694.0,2693.9,0.04699198]
[1740209461138,4.986398,2694.0,2693.8,0.1627184]
[1740209461343,4.986398,2694.0,2693.8,0.11619731]
[1740209461555,4.986398,2694.0,2693.9,0.04652109]
[1740209461753,8.698428,2694.0,2693.8,0.11619731]
[1740209461962,4.986398,2694.0,2693.8,0.11619731]
[1740209462133,9.501828,2694.0,2693.8,0.11619731]
[1740209462329,5.789798,2694.0,2693.7,0.266]
[1740209462669,3.71222,2693.8,2693.7,0.266]
[1740209463079,3.7125,2693.6,2693.5,0.11619731]
[1740209463374,4.5159,2693.6,2693.5,0.4287184]
[1740209463870,4.5159,2693.6,2693.5,0.1627184]
[1740209464058,4.5159,2693.6,2693.5,0.11619731]
[1740209464059,5.338726,2693.6,2693.5,0.11619731]
[1740209464759,1.626226,2693.6,2693.5,0.11619731]
[1740209465285,1.626226,2693.6,2693.5,0.1631955]
[1740209465592,1.626226,2693.6,2693.5,0.04699819]
[1740209466645,4.5159,2693.6,2693.5,0.04699819]
[1740209466883,3.71265,2693.5,2693.3,0.266]
[1740209467073,3.71265,2693.5,2693.4,0.04699819]
[1740209467397,3.71265,2693.5,2693.3,0.266]
[1740209467920,0.8034,2693.6,2693.4,0.04699819]
[1740209468046,9.83563,2693.8,2693.4,0.04699819]
[1740209468246,6.1234,2693.8,2693.4,0.04699819]
[1740209469574,3.71237,2693.7,2693.4,0.04699819]
[1740209469806,3.71237,2693.7,2693.5,0.11620403]
[1740209470895,3.7125,2693.6,2693.5,0.11620403]
[1740209471250,3.7125,2693.6,2693.4,0.11620403]
[1740209472168,3.71264,2693.5,2693.4,0.11620403]
[1740209472376,3.71264,2693.5,2693.4,0.38220403]
[1740209476159,3.71264,2693.5,2693.4,0.42982929]
[1740209477151,4.455142,2693.5,2693.4,0.42882929]
[1740209477568,4.455142,2693.5,2693.4,0.265]
[1740209479105,0.742502,2693.5,2693.4,0.31262526]
[1740209479289,3.71252,2693.6,2693.4,0.31262526]
[1740209479488,3.71252,2693.6,2693.4,0.265]
[1740209480523,3.71252,2693.6,2693.5,0.04762526]
[1740209481284,3.71238,2693.7,2693.5,0.04762526]
[1740209483711,9.83569,2693.8,2693.5,0.04762526]
[1740209483916,11.24836198,2693.8,2693.5,0.04762526]
[1740209485299,14.96068198,2693.8,2693.5,0.04762526]
[1740209485507,11.24836198,2693.8,2693.5,0.04762526]
[1740209485713,10.44496198,2693.8,2693.5,0.04762526]
[1740209486039,10.44495198,2693.8,2693.5,0.04762526]
[1740209486203,4.81480318,2693.7,2693.4,0.265]
[1740209486392,1.10239318,2693.7,2693.4,0.265]
[1740209486735,9.03223,2693.8,2693.4,0.265]
[1740209487186,9.03223,2693.8,2693.5,0.04762526]
[1740209487387,9.03223,2693.8,2693.5,0.16383218]
[1740209488636,5.32,2693.8,2693.5,0.16383218]
[1740209488820,5.32,2693.8,2693.5,0.04762526]
[1740209490103,5.32,2693.8,2693.6,0.11620682]
[1740209490305,5.75038358,2693.8,2693.7,0.04759797]
[1740209490531,9.46260358,2693.8,2693.7,0.04759797]
[1740209491824,9.46260358,2693.8,2693.4,0.265]
[1740209492245,3.7125,2693.6,2693.5,0.04759797]
[1740209492846,3.7125,2693.6,2693.5,0.16380807]
[1740209493012,5.10943536,2693.6,2693.5,0.16380807]
[1740209493215,5.10943536,2693.6,2693.5,0.1162101]
[1740209493418,5.10943536,2693.6,2693.5,0.16380807]
[1740209493830,1.39693536,2693.6,2693.5,0.16380807]
[1740209494030,3.7125,2693.6,2693.5,0.16380807]
[1740209497949,4.4998,2693.6,2693.5,0.1162101]
[1740209498302,4.4998,2693.6,2693.2,0.1162101]
[1740209498539,3.71291,2693.3,2693.2,0.1162101]
[1740209498841,4.50021,2693.3,2693.2,0.1162101]
[1740209499016,5.853511,2693.3,2693.2,0.1162101]
[1740209499223,5.853511,2693.3,2693.1,0.005]
[1740209499420,3.71305,2693.2,2693.1,0.005]
[1740209500243,7.50035,2693.2,2693.1,0.005]
[1740209505664,21.61035,2693.2,2693.1,0.005]
[1740209505817,24.2780061,2693.2,2693.1,0.005]
[1740209512067,3.71346,2692.9,2691.8,7.585]
[1740209512365,3.71436,2692.3,2691.9,0.31237]
[1740209514728,5.32,2692.6,2691.9,0.31237]
[1740209514953,3.71434,2692.3,2691.9,4.02718]
[1740209515571,3.71434,2692.3,2691.9,0.31237]
[1740209516469,3.71431,2692.3,2691.9,0.31237]
[1740209518813,3.71425,2692.4,2691.9,0.31237]
[1740209518971,3.71403,2692.5,2692.0,3.7147]
[1740209519176,3.71403,2692.5,2692.1,0.04880662]
[1740209519387,9.03391,2692.6,2692.1,0.04880662]
[1740209519597,3.71417,2692.4,2692.1,0.04880662]
[1740209520014,3.71438,2692.3,2691.9,0.264]
[1740209520307,3.71438,2692.3,2692.2,0.04880662]
[1740209520601,3.71449,2692.2,2691.9,0.264]
[1740209520754,3.71422,2692.4,2692.2,0.04880662]
[1740209520959,3.71422,2692.4,2691.9,3.97877]
[1740209521191,3.71422,2692.4,2692.0,0.04880662]
[1740209521843,3.71413,2692.5,2692.0,3.76344662]
[1740209521995,3.71413,2692.5,2692.1,3.71455]
[1740209522598,3.71413,2692.5,2692.2,0.04880662]
[1740209523092,7.42825,2692.5,2692.2,0.04880662]
[1740209523293,3.71429,2692.3,2692.2,0.04880662]
[1740209524104,3.71429,2692.3,2691.9,0.264]
[1740209524313,3.71429,2692.3,2692.2,0.04880662]
[1740209524530,3.71429,2692.3,2691.7,3.71504]
[1740209524531,3.71445,2692.2,2691.7,3.71504]
[1740209524732,3.71445,2692.2,2691.8,0.264]
[1740209526938,3.71445,2692.2,2691.9,0.264]
[1740209528044,3.71471,2692.0,2691.9,0.264]
[1740209528500,3.71491,2691.9,2691.4,4.831949]
[1740209528695,4.49343,2692.2,2691.5,3.97934]
[1740209528920,3.71471,2692.0,2691.5,3.97934]
[1740209530345,3.71471,2692.0,2691.5,7.69465]
[1740209530549,3.71465,2692.1,2691.6,3.7152]
[1740209532349,3.71474,2692.0,2691.5,3.97936]
[1740209533147,3.71465,2692.1,2691.5,3.97936]
[1740209533749,3.71471,2692.0,2691.5,3.97936]
[1740209534104,3.71485,2691.9,2691.6,0.264]
[1740209534306,3.71499,2691.8,2691.4,1.116419]
[1740209534612,3.71499,2691.8,2691.7,0.264]
[1740209535248,3.71499,2691.8,2691.4,1.116419]
[1740209535398,3.71517,2691.7,2691.5,0.264]
[1740209535804,3.71517,2691.7,2691.6,0.264]
[1740209536040,3.71517,2691.7,2691.6,0.31362536]
[1740209536423,3.71483,2692.0,2691.6,0.31362536]
[1740209536621,3.715,2691.8,2691.6,0.31362536]
[1740209538043,3.715,2691.8,2691.6,0.04962536]
[1740209538563,3.715,2691.8,2691.7,0.04984373]
[1740209538763,3.715,2691.8,2691.7,0.11628207]
[1740209538965,3.715,2691.8,2691.7,0.1661258]
[1740209540693,3.715,2691.8,2691.7,0.04984373]
[1740209542267,4.538076,2691.8,2691.7,0.04984373]
[1740209542586,3.71512,2691.7,2691.6,0.264]
[1740209543589,3.71512,2691.7,2691.0,6.71608]
[1740209543590,3.71527,2691.6,2691.5,0.264]
[1740209544763,3.71513,2691.7,2691.5,0.264]
[1740209545230,0.823076,2691.8,2691.5,0.264]
[1740209546103,4.538126,2691.8,2691.5,0.264]
[1740209547004,3.71513,2691.7,2691.5,0.264]
[1740209547212,4.538116,2691.8,2691.5,0.264]
[1740209549170,0.823076,2691.8,2691.5,0.264]
[1740209549374,3.71481,2692.0,2691.5,0.264]
[1740209550018,7.42963,2692.0,2691.5,0.264]
[1740209550219,3.71481,2692.0,2691.5,0.264]
[1740209550750,5.32,2692.1,2691.8,3.71498]
[1740209551028,5.32,2692.1,2691.9,3.76653594]
[1740209551184,5.32,2692.1,2691.9,3.76650594]
[1740209551617,0.7581,2692.6,2691.9,3.76650594]
[1740209551823,1.0163186,2692.6,2692.2,3.71443]
[1740209552053,1.0163186,2692.6,2692.3,0.264]
[1740209552189,4.7302086,2692.6,2692.3,0.3153044]
[1740209552589,1.0163186,2692.6,2692.3,0.3153044]
[1740209554192,4.7302286,2692.6,2692.3,0.3153044]
[1740209554428,7.42759,2692.7,2692.3,0.3153044]
[1740209554630,3.71389,2692.6,2692.3,0.3153044]
[1740209555131,3.71389,2692.6,2692.5,0.72797618]
[1740209555631,3.71389,2692.6,2692.5,0.77928058]
[1740209558139,3.71389,2692.6,2692.5,0.0513044]
[1740209558345,5.1015976,2692.6,2692.3,0.264]
[1740209558556,5.1015976,2692.6,2692.4,0.05056715]
[1740209559064,3.71402,2692.5,2692.4,0.05056715]
[1740209559358,0.8187,2692.4,2691.9,0.264]
[1740209559627,3.71471,2692.0,2691.9,0.264]
[1740209560475,3.71446,2692.2,2691.9,0.264]
[1740209560679,9.85287,2692.4,2691.9,0.264]
[1740209560884,3.71459,2692.1,2691.9,0.264]
[1740209561173,3.71471,2692.0,2691.9,0.264]
[1740209562181,3.7145,2692.2,2691.9,0.264]
[1740209563141,3.71457,2692.1,2691.9,0.264]
[1740209563346,8.46501298,2692.3,2691.9,0.264]
[1740209563549,5.1748113,2692.2,2691.9,0.264]
[1740209564296,3.71457,2692.1,2691.9,0.264]
[1740209565087,3.71471,2692.0,2691.9,0.264]
[1740209567871,3.71471,2692.0,2691.9,0.31422589]
[1740209568185,3.71471,2692.0,2691.9,0.264]
[1740209568387,4.54497,2692.1,2691.9,0.31494938]
[1740209568691,5.24913443,2692.1,2691.9,0.264]
[1740209569197,5.24913443,2692.1,2692.0,0.05094938]
[1740209569498,3.71471,2692.0,2691.9,0.264]
[1740209569783,5.24913443,2692.1,2691.9,0.264]
[1740209569946,5.24913443,2692.1,2692.0,0.05094938]
[1740209570142,5.24913443,2692.1,2691.9,0.264]
[1740209570368,8.96379443,2692.1,2692.0,0.05094938]
[1740209570879,10.56913443,2692.1,2692.0,0.05094938]
[1740209571845,3.71471,2692.0,2691.9,0.264]
[1740209572181,10.56913443,2692.1,2691.9,0.264]
[1740209572391,4.77162344,2692.0,2691.9,0.264]
[1740209572572,1.05691344,2692.0,2691.9,0.264]
[1740209572883,10.56913443,2692.1,2691.9,0.264]
[1740209574993,6.85456443,2692.1,2691.9,0.264]
[1740209575351,10.56913443,2692.1,2691.9,0.264]
[1740209578190,6.85456443,2692.1,2691.9,0.264]
[1740209578654,5.32,2692.1,2691.9,0.264]
[1740209581001,5.32,2692.1,2692.0,0.05096306]
[1740209582900,3.71449,2692.2,2692.0,0.05096306]
[1740209584207,3.71457,2692.1,2692.0,0.05096306]
[1740209584505,4.50881,2692.3,2692.0,0.05096306]
[1740209584705,4.165391,2692.2,2692.0,0.05096306]
[1740209586620,5.32,2692.5,2691.9,3.97882]
[1740209586621,9.03402,2692.5,2691.9,3.97882]
[1740209586783,12.74814,2692.5,2692.0,4.88190314]
[1740209587118,3.71438,2692.3,2692.0,1.16725314]
[1740209587268,5.385718,2692.3,2692.0,1.16725314]
[1740209587466,1.671338,2692.3,2692.0,1.16725314]
[1740209587695,3.71457,2692.1,2692.0,0.05088114]
[1740209588008,3.71456,2692.2,2692.0,0.05088114]
[1740209588623,3.71456,2692.2,2692.0,0.264]
[1740209588906,3.71456,2692.2,2692.1,0.05088114]
[1740209590812,4.6245728,2692.2,2692.1,0.05088114]
[1740209594035,3.71457,2692.1,2692.0,0.264]
[1740209594198,0.9100128,2692.2,2692.0,0.05056715]
[1740209594527,3.71471,2692.0,2691.9,0.264]
[1740209595108,3.71471,2692.0,2691.9,0.31464905]
[1740209595309,3.71471,2692.0,2691.9,0.264]
[1740209595744,3.71484,2691.9,2691.3,0.28436613]
[1740209596037,3.71504,2691.8,2691.4,0.31464905]
[1740209596395,3.71518,2691.7,2691.4,0.31464905]
[1740209597442,3.715,2691.8,2691.4,0.31464905]
[1740209597920,3.71513,2691.7,2691.4,0.31464905]
[1740209598903,3.715,2691.8,2691.4,0.31464905]
[1740209599839,3.715,2691.8,2691.4,4.03016905]
[1740209600838,3.715,2691.8,2691.4,0.31464905]
[1740209601040,3.7149,2691.9,2691.4,0.31464905]
[1740209601206,3.71502,2691.8,2691.4,0.31464905]
[1740209602119,3.71502,2691.8,2691.5,0.11628224]
[1740209602443,3.71502,2691.8,2691.6,0.05085384]
[1740209602841,3.71512,2691.7,2691.6,0.05085384]
[1740209603006,3.71512,2691.7,2691.6,0.31485384]
[1740209604550,3.71512,2691.7,2691.6,0.43113756]
[1740209605047,5.246432,2691.7,2691.6,0.16713756]
[1740209605247,5.246432,2691.7,2691.6,0.11628372]
[1740209606359,3.71526,2691.6,2691.5,0.264]
[1740209606843,3.71526,2691.6,2691.5,0.31516786]
[1740209607761,3.71526,2691.6,2691.5,0.05116786]
[1740209608425,3.71526,2691.6,2691.4,0.264]
[1740209608628,0.7883,2691.7,2691.4,0.264]
[1740209608629,3.7154,2691.5,2691.4,0.264]
[1740209608934,3.71527,2691.6,2691.4,0.264]
[1740209609441,4.50342,2691.7,2691.4,0.264]
[1740209609967,3.71505,2691.8,2691.4,0.264]
[1740209610319,3.71518,2691.7,2691.4,0.264]
[1740209610819,3.71515,2691.7,2691.4,0.264]
[1740209611019,3.71515,2691.7,2691.5,0.05142731]